bitfinex/quotes_BTCUSD_20250812
["timestamp","ask_amount","ask_price","bid_price","bid_amount"]
[1755014162560,0.00381379,119940.0,119930.0,2.49558278]
[1755014162783,0.00381379,119940.0,119930.0,2.45550378]
[1755014163010,0.00381379,119940.0,119930.0,1.82345903]
[1755014163247,0.00381379,119940.0,119930.0,1.81343403]
[1755014163910,0.00381379,119940.0,119930.0,1.81643403]
[1755014164594,0.00381379,119940.0,119930.0,2.3782658]
[1755014164815,0.00381379,119940.0,119930.0,2.7782658]
[1755014165038,0.00381379,119940.0,119930.0,2.82071482]
[1755014165481,0.01749661,119990.0,119950.0,0.32506113]
[1755014165711,0.18677726,119990.0,119970.0,0.64455502]
[1755014165933,0.11198,119980.0,119970.0,0.84463502]
[1755014166158,0.11198,119980.0,119970.0,0.43240325]
[1755014166642,0.28126444,119980.0,119970.0,0.45730225]
[1755014166903,0.17126444,119980.0,119970.0,0.45744843]
[1755014167141,0.00203,119980.0,119970.0,0.45744843]
[1755014167350,0.11203,119980.0,119970.0,0.45744843]
[1755014167573,0.11203,119980.0,119970.0,1.04408133]
[1755014167828,0.11203,119980.0,119970.0,0.89460133]
[1755014168117,0.11203,119980.0,119970.0,0.33280956]
[1755014168382,0.11303,119980.0,119970.0,1.04456133]
[1755014168590,0.11303,119980.0,119970.0,0.48272956]
[1755014168826,0.11303,119980.0,119970.0,1.04456133]
[1755014169082,0.111,119980.0,119970.0,0.48776956]
[1755014169312,0.111,119980.0,119970.0,1.04960133]
[1755014169811,0.111,119980.0,119970.0,0.48776956]
[1755014170258,0.111,119980.0,119970.0,1.04960133]
[1755014170462,0.11303,119980.0,119970.0,1.04512133]
[1755014170895,0.11303,119980.0,119970.0,0.48328956]
[1755014171100,0.11303,119980.0,119970.0,1.04720133]
[1755014171305,0.11303,119980.0,119970.0,0.48832956]
[1755014171485,0.11303,119980.0,119970.0,1.05016133]
[1755014172077,0.111,119980.0,119970.0,1.05016133]
[1755014172278,0.111,119980.0,119970.0,0.48832956]
[1755014172523,0.11298,119980.0,119970.0,1.04524133]
[1755014172724,0.11298,119980.0,119970.0,0.48548956]
[1755014173031,0.111,119980.0,119970.0,1.05028133]
[1755014173172,0.111,119980.0,119970.0,0.48844956]
[1755014173384,0.11298,119980.0,119970.0,1.04524133]
[1755014173646,0.11298,119980.0,119970.0,1.04732133]
[1755014173850,0.11298,119980.0,119970.0,1.05028133]
[1755014174474,0.111,119980.0,119970.0,1.05028133]
[1755014175113,0.111,119980.0,119970.0,0.48844956]
[1755014175524,0.111,119980.0,119970.0,1.05028133]
[1755014176116,0.111,119980.0,119970.0,0.48844956]
[1755014176318,0.111,119980.0,119970.0,0.89968133]
[1755014176521,0.111,119980.0,119970.0,1.05044133]
[1755014176952,0.111,119980.0,119970.0,0.33784956]
[1755014177098,0.11299,119980.0,119970.0,0.48868956]
[1755014177296,0.11299,119980.0,119970.0,1.05052133]
[1755014177714,0.11299,119980.0,119970.0,0.33280956]
[1755014177927,0.11299,119980.0,119970.0,1.04552133]
[1755014178161,0.11299,119980.0,119970.0,1.04760133]
[1755014178408,0.11299,119980.0,119970.0,1.05056133]
[1755014178856,0.11299,119980.0,119970.0,1.04552133]
[1755014179063,0.11557,119980.0,119970.0,1.04552133]
[1755014179493,0.28226444,119980.0,119970.0,0.33280956]
[1755014179696,0.73409621,119980.0,119970.0,0.48376956]
[1755014179902,0.19633444,119980.0,119970.0,0.48376956]
[1755014180529,0.19633444,119980.0,119970.0,0.30800843]
[1755014180734,0.19633444,119980.0,119970.0,0.43394943]
[1755014181348,0.19505421,119980.0,119970.0,0.4333078]
[1755014181760,0.20283476,119980.0,119970.0,0.4333078]
[1755014184274,0.76466653,119980.0,119970.0,0.2823478]
[1755014184477,0.76466653,119980.0,119970.0,0.4334678]
[1755014184478,0.20283476,119980.0,119970.0,0.4334678]
[1755014185763,0.78211555,119980.0,119970.0,0.2823478]
[1755014186194,0.78212576,119980.0,119970.0,0.0822678]
[1755014186409,0.78212576,119980.0,119970.0,0.2334678]
[1755014186825,0.8422566,119980.0,119970.0,0.00018618]
[1755014187038,0.78212576,119980.0,119970.0,0.00018618]
[1755014187451,0.78712576,119980.0,119970.0,0.15146618]
[1755014188091,0.78712576,119980.0,119970.0,0.00018618]
[1755014188317,0.78412576,119980.0,119970.0,0.15154618]
[1755014188537,0.30877842,119980.0,119970.0,0.15154618]
[1755014188749,0.78612576,119980.0,119970.0,0.15154618]
[1755014189195,0.78912576,119980.0,119970.0,0.15154618]
[1755014189410,0.22729804,119980.0,119970.0,0.15154618]
[1755014189628,0.78612981,119980.0,119970.0,0.15154618]
[1755014189841,0.86861113,119980.0,119970.0,0.15154618]
[1755014190050,0.86761113,119980.0,119970.0,0.15154618]
[1755014190262,0.87261113,119980.0,119970.0,0.15162618]
[1755014191109,0.7901267,119980.0,119970.0,0.15162618]
[1755014191548,0.22829493,119980.0,119970.0,0.15162618]
[1755014191964,0.7901267,119980.0,119970.0,0.15162618]
[1755014192389,0.22829493,119980.0,119970.0,0.15162618]
[1755014192595,0.7901267,119980.0,119970.0,0.15162618]
[1755014192867,0.87261113,119980.0,119970.0,0.15162618]
[1755014193537,0.87261113,119980.0,119970.0,0.00018618]
[1755014194182,0.22829493,119980.0,119970.0,0.00018618]
[1755014194394,0.7901267,119980.0,119970.0,0.06779658]
[1755014194599,0.18419591,119980.0,119970.0,0.06779658]
[1755014194814,0.20164493,119980.0,119970.0,0.06779658]
[1755014196131,0.7634767,119980.0,119970.0,0.00018618]
[1755014196342,0.84828113,119980.0,119970.0,0.15174618]
[1755014196976,0.28644936,119980.0,119970.0,0.15174618]
[1755014197188,0.7657967,119980.0,119970.0,0.15174618]
[1755014197599,0.7634767,119980.0,119970.0,0.15174618]
[1755014197996,0.19385323,119980.0,119970.0,0.15174618]
[1755014198560,0.755685,119980.0,119970.0,0.15174618]
[1755014199591,0.19385323,119980.0,119970.0,0.15174618]
[1755014199954,0.79372007,119980.0,119970.0,0.15174618]
[1755014200314,0.79372007,119980.0,119970.0,0.15384618]
[1755014200542,0.79372007,119980.0,119970.0,0.15174618]
[1755014200908,0.2318883,119980.0,119970.0,0.15174618]
[1755014201133,0.79372007,119980.0,119970.0,0.15174618]
[1755014202228,0.2342083,119980.0,119970.0,0.15174618]
[1755014202407,0.79604007,119980.0,119970.0,0.15174618]
[1755014202848,0.758005,119980.0,119970.0,0.15174618]
[1755014203692,0.19617323,119980.0,119970.0,0.15174618]
[1755014203905,0.755685,119980.0,119970.0,0.15174618]
[1755014204528,0.19385323,119980.0,119970.0,0.15174618]
[1755014204940,0.758005,119980.0,119970.0,0.15174618]
[1755014205096,0.84048943,119980.0,119970.0,0.15174618]
[1755014205672,0.84048943,119980.0,119970.0,0.00018618]
[1755014206312,0.86477943,119980.0,119970.0,0.00018618]
[1755014206891,0.15924224,119960.0,119950.0,0.2184904]
[1755014207091,0.72273401,119960.0,119950.0,0.2186366]
[1755014207880,0.72273401,119960.0,119950.0,0.2186766]
[1755014208361,0.16090224,119960.0,119950.0,0.2186766]
[1755014208583,0.72473401,119960.0,119950.0,0.2186766]
[1755014209005,0.16320224,119960.0,119950.0,0.30672985]
[1755014209200,0.16320224,119960.0,119950.0,0.86856162]
[1755014209337,0.16320224,119960.0,119950.0,0.30672985]
[1755014209586,0.16320224,119960.0,119950.0,0.86856162]
[1755014210255,0.16320224,119960.0,119950.0,0.30672985]
[1755014212765,0.16320224,119960.0,119950.0,0.86856162]
[1755014213212,0.16320224,119960.0,119950.0,0.30672985]
[1755014213449,0.16320224,119960.0,119950.0,0.86856162]
[1755014214818,0.16120224,119960.0,119950.0,0.86856162]
[1755014215255,0.16220224,119960.0,119950.0,0.86856162]
[1755014215468,0.16020224,119960.0,119950.0,0.86856162]
[1755014215931,0.16120224,119960.0,119950.0,0.30672985]
[1755014216132,0.16120224,119960.0,119950.0,0.86856162]
[1755014216760,0.16120224,119960.0,119950.0,0.23911945]
[1755014216967,0.16120224,119960.0,119950.0,0.80095122]
[1755014217179,0.16120224,119960.0,119950.0,0.23911945]
[1755014217370,0.16120224,119960.0,119950.0,0.80095122]
[1755014218278,0.16120224,119960.0,119950.0,0.23911945]
[1755014218493,0.16120224,119960.0,119950.0,0.80095122]
[1755014219319,0.16120224,119960.0,119950.0,0.23911945]
[1755014219633,0.16120224,119960.0,119950.0,0.80095122]
[1755014220174,0.16120224,119960.0,119950.0,0.65003122]
[1755014220408,0.16120224,119960.0,119950.0,0.80031122]
[1755014220911,0.16120224,119960.0,119950.0,0.23847945]
[1755014221119,0.16120224,119960.0,119950.0,0.80031122]
[1755014225316,0.72501401,119960.0,119950.0,0.08819945]
[1755014225529,0.16318224,119960.0,119950.0,0.08488945]
[1755014225758,0.16318224,119960.0,119950.0,0.23777945]
[1755014225759,0.16120224,119960.0,119950.0,0.23777945]
[1755014229497,0.16120224,119960.0,119950.0,0.79961122]
[1755014229718,0.16120224,119960.0,119950.0,0.23777945]
[1755014229935,0.16120224,119960.0,119950.0,0.79961122]
[1755014230381,0.16120224,119960.0,119950.0,0.23777945]
[1755014231248,0.16120224,119960.0,119950.0,0.79961122]
[1755014231682,0.15657224,119960.0,119950.0,0.79961122]
[1755014232118,0.15657224,119960.0,119950.0,0.23777945]
[1755014232341,0.15657224,119960.0,119950.0,0.79961122]
[1755014233395,0.15657224,119960.0,119950.0,0.23777945]
[1755014233612,0.15657224,119960.0,119950.0,0.79961122]
[1755014236028,0.15657224,119960.0,119950.0,0.23777945]
[1755014236282,0.15657224,119960.0,119950.0,0.79961122]
[1755014237354,0.15657224,119960.0,119950.0,0.64965122]
[1755014237574,0.15657224,119960.0,119950.0,0.23733945]
[1755014237789,0.15657224,119960.0,119950.0,0.79917122]
[1755014239408,0.15657224,119960.0,119950.0,0.23733945]
[1755014239937,0.15657224,119960.0,119950.0,0.79917122]
[1755014240427,0.15657224,119960.0,119950.0,0.23733945]
[1755014240670,0.15657224,119960.0,119950.0,0.79917122]
[1755014241092,0.15855224,119960.0,119950.0,0.08496552]
[1755014241280,0.15855224,119960.0,119950.0,0.23135552]
[1755014241905,0.15855224,119960.0,119950.0,0.79813729]
[1755014242106,0.15657224,119960.0,119950.0,0.79813729]
[1755014243493,0.15855224,119960.0,119950.0,0.23095552]
[1755014243711,0.16086224,119960.0,119950.0,0.23095552]
[1755014243890,0.16086224,119960.0,119950.0,0.23103552]
[1755014244583,0.16673614,119950.0,119940.0,0.20008]
[1755014244810,0.16673614,119950.0,119940.0,0.43225046]
[1755014246584,0.17102614,119950.0,119940.0,0.28329046]
[1755014246797,0.18847516,119950.0,119940.0,0.28329046]
[1755014247225,0.75030693,119950.0,119940.0,0.20056721]
[1755014247427,0.75030693,119950.0,119940.0,0.34956721]
[1755014247643,0.75030693,119950.0,119940.0,0.20056721]
[1755014247849,0.75230693,119950.0,119940.0,0.34960721]
[1755014248067,0.18419906,119940.0,119930.0,0.02264551]
[1755014248279,0.74603083,119940.0,119930.0,0.17192551]
[1755014248489,0.75032083,119940.0,119930.0,0.17192551]
[1755014248699,0.18848906,119940.0,119930.0,0.17192551]
[1755014248935,0.75032083,119940.0,119930.0,0.15492551]
[1755014249156,0.18848906,119940.0,119930.0,0.15492551]
[1755014249361,0.75332083,119940.0,119930.0,0.15492551]
[1755014249796,0.83580526,119940.0,119930.0,0.15492551]
[1755014250248,0.27397349,119940.0,119930.0,0.15492551]
[1755014250467,0.83580526,119940.0,119930.0,0.15492551]
[1755014250685,0.75332083,119940.0,119930.0,0.15492551]
[1755014250895,0.75732083,119940.0,119930.0,0.15492551]
[1755014252482,0.78235683,119940.0,119930.0,0.15492551]
[1755014252698,0.78235683,119940.0,119930.0,0.00564551]
[1755014252915,0.78235683,119940.0,119930.0,0.15472551]
[1755014253145,0.86484126,119940.0,119930.0,0.15472551]
[1755014253362,0.30300949,119940.0,119930.0,0.15472551]
[1755014253785,0.86484126,119940.0,119930.0,0.15472551]
[1755014254640,0.16677785,119920.0,119910.0,0.07102823]
[1755014254896,0.16880785,119920.0,119910.0,0.30283148]
[1755014255114,0.73063962,119920.0,119910.0,0.00048783]
[1755014255335,0.75034864,119920.0,119910.0,0.14944783]
[1755014255561,0.82675079,119920.0,119910.0,0.14944783]
[1755014256019,0.75034864,119920.0,119910.0,0.14944783]
[1755014256487,0.19691978,119920.0,119910.0,0.14948783]
[1755014256717,0.19262978,119920.0,119910.0,0.15150783]
[1755014256932,0.19262978,119920.0,119910.0,0.15448783]
[1755014257144,0.19362978,119920.0,119910.0,0.15448783]
[1755014257354,0.19562978,119920.0,119910.0,0.15448783]
[1755014257780,0.18722687,119920.0,119910.0,0.15448783]
[1755014257992,0.18920687,119920.0,119910.0,0.15448783]
[1755014258207,0.16977785,119920.0,119910.0,0.23721108]
[1755014258663,0.17175785,119920.0,119910.0,0.23721108]
[1755014258876,0.17175785,119920.0,119910.0,0.23221108]
[1755014259149,0.17175785,119920.0,119910.0,0.23217108]
[1755014259362,0.17175785,119920.0,119910.0,0.14944783]
[1755014259781,0.18920687,119920.0,119910.0,0.00048783]
[1755014259989,0.18920687,119920.0,119910.0,0.14928783]
[1755014262226,0.75103864,119920.0,119910.0,0.00048783]
[1755014262436,0.75335864,119920.0,119910.0,0.14916783]
[1755014262643,0.83584307,119920.0,119910.0,0.00048783]
[1755014262874,0.2740113,119920.0,119910.0,0.00048783]
[1755014263086,0.75335864,119920.0,119910.0,0.00048783]
[1755014263303,0.18404687,119920.0,119910.0,0.00048783]
[1755014263523,0.74587864,119920.0,119910.0,0.00048783]
[1755014263740,0.16680567,119900.0,119890.0,0.30306]
[1755014263946,0.73061744,119900.0,119890.0,0.45222832]
[1755014264183,0.16680567,119900.0,119890.0,0.30556832]
[1755014264393,0.16878567,119900.0,119890.0,0.45424832]
[1755014265539,0.17178567,119900.0,119890.0,0.45424832]
[1755014266848,0.17378567,119900.0,119890.0,0.45424832]
[1755014267717,0.17378567,119900.0,119890.0,0.45126832]
[1755014268666,0.17378567,119900.0,119890.0,0.45424832]
[1755014268879,0.17180567,119900.0,119890.0,0.45424832]
[1755014269322,0.17180567,119900.0,119890.0,1.01608009]
[1755014269963,0.17180567,119900.0,119890.0,0.53697157]
[1755014270170,0.17180567,119900.0,119890.0,1.09880334]
[1755014270386,0.005,119900.0,119890.0,1.16641374]
[1755014271028,0.003,119900.0,119890.0,1.33323332]
[1755014271465,0.16763674,119920.0,119900.0,0.16680526]
[1755014271682,0.16677636,119930.0,119910.0,1.36411657]
[1755014271918,0.16677636,119930.0,119920.0,0.56183177]
[1755014272138,0.16677636,119930.0,119920.0,0.64955502]
[1755014272363,0.16677636,119930.0,119920.0,0.08772325]
[1755014272589,0.16677636,119930.0,119920.0,0.64955502]
[1755014273277,0.16677636,119930.0,119920.0,0.23624325]
[1755014273509,0.16677636,119930.0,119920.0,0.79807502]
[1755014273718,0.16677636,119930.0,119920.0,0.23624325]
[1755014274155,0.16677636,119930.0,119920.0,0.23616325]
[1755014274661,0.16677636,119930.0,119920.0,0.23604325]
[1755014275765,0.16777636,119930.0,119920.0,0.23604325]
[1755014276641,0.16777636,119930.0,119920.0,0.79787502]
[1755014276854,0.16877636,119930.0,119920.0,0.79787502]
[1755014278975,0.16877636,119930.0,119920.0,0.23604325]
[1755014279189,0.16877636,119930.0,119920.0,0.79787502]
[1755014282705,0.16877636,119930.0,119920.0,0.23604325]
[1755014282914,0.16877636,119930.0,119920.0,0.79787502]
[1755014283126,0.16777636,119930.0,119920.0,0.79791502]
[1755014284023,0.16777636,119930.0,119920.0,0.23608325]
[1755014284270,0.16777636,119930.0,119920.0,0.79791502]
[1755014284764,0.001,119930.0,119920.0,1.35974679]
[1755014285298,0.16676394,119930.0,119920.0,1.35974679]
[1755014285512,0.17508754,119940.0,119920.0,1.35974679]
[1755014285750,0.17508754,119940.0,119930.0,0.64973956]
[1755014285969,0.17508754,119940.0,119930.0,0.64976502]
[1755014286185,0.17508754,119940.0,119930.0,0.08793325]
[1755014286412,0.17508754,119940.0,119930.0,0.65184956]
[1755014286634,0.17508754,119940.0,119930.0,0.64976502]
[1755014287074,0.17508754,119940.0,119930.0,0.65025334]
[1755014287512,0.16675004,119940.0,119930.0,0.65025334]
[1755014287950,0.16673614,119950.0,119930.0,0.65025334]
[1755014288161,0.16673614,119950.0,119940.0,0.71336051]
[1755014288370,0.16673614,119950.0,119940.0,0.79712502]
[1755014288603,0.16673614,119950.0,119940.0,0.23529325]
[1755014288813,0.16673614,119950.0,119940.0,0.79712502]
[1755014289446,0.16773614,119950.0,119940.0,0.79712502]
[1755014290421,0.16673614,119950.0,119940.0,0.79712502]
[1755014291681,0.16673614,119950.0,119940.0,0.23529325]
[1755014291891,0.16673614,119950.0,119940.0,0.79712502]
[1755014292616,0.16673614,119950.0,119940.0,0.23529325]
[1755014292809,0.16673614,119950.0,119940.0,0.79712502]
[1755014293020,0.16673614,119950.0,119940.0,0.23529325]
[1755014293179,0.16673614,119950.0,119940.0,0.79712502]
[1755014293378,0.16673614,119950.0,119940.0,0.79716502]
[1755014293809,0.16871614,119950.0,119940.0,0.08797325]
[1755014294014,0.16871614,119950.0,119940.0,0.08276325]
[1755014294247,0.16871614,119950.0,119940.0,0.22964325]
[1755014296056,0.16871614,119950.0,119940.0,0.08276325]
[1755014296465,0.16871614,119950.0,119940.0,0.65188939]
[1755014296729,0.16673614,119950.0,119940.0,0.79668502]
[1755014297139,0.16673614,119950.0,119940.0,0.23485325]
[1755014297345,0.16673614,119950.0,119940.0,0.23477325]
[1755014297585,0.16673614,119950.0,119940.0,0.79660502]
[1755014300500,0.16673614,119950.0,119940.0,0.23477325]
[1755014300707,0.16673614,119950.0,119940.0,0.79660502]
[1755014304703,0.17509843,119960.0,119940.0,0.79660502]
[1755014304918,0.17509843,119960.0,119950.0,0.64663922]
[1755014305171,0.17509843,119960.0,119950.0,0.64976502]
[1755014305379,0.17509843,119960.0,119950.0,0.64980502]
[1755014306125,0.16672224,119960.0,119950.0,0.64980502]
[1755014306324,0.17511594,119970.0,119950.0,0.64980502]
[1755014306555,0.17511594,119970.0,119960.0,0.14844402]
[1755014306772,0.17511594,119970.0,119960.0,0.79820904]
[1755014306978,0.17511594,119970.0,119960.0,0.79612502]
[1755014307629,0.17511594,119970.0,119960.0,0.23429325]
[1755014307836,0.17511594,119970.0,119960.0,0.79612502]
[1755014308043,0.16770834,119970.0,119960.0,0.79612502]
[1755014308253,0.001,119970.0,119960.0,0.96284726]
[1755014308457,0.111,119970.0,119960.0,0.96284726]
[1755014308871,0.27770834,119970.0,119960.0,0.79612502]
[1755014309076,0.16770834,119970.0,119960.0,0.79612502]
[1755014309283,0.16670834,119970.0,119960.0,0.79712502]
[1755014309722,0.16670834,119970.0,119960.0,0.79812502]
[1755014309933,0.16670834,119970.0,119960.0,0.23629325]
[1755014310169,0.16670834,119970.0,119960.0,0.23601325]
[1755014310385,0.16670834,119970.0,119960.0,0.08997325]
[1755014310624,0.16868834,119970.0,119960.0,0.23068325]
[1755014310850,0.73052011,119970.0,119960.0,0.23068325]
[1755014311068,0.17099834,119970.0,119960.0,0.23068325]
[1755014311291,0.17099834,119970.0,119960.0,0.23064325]
[1755014311963,0.16868834,119970.0,119960.0,0.23064325]
[1755014312189,0.16868834,119970.0,119960.0,0.22964325]
[1755014312414,0.16868834,119970.0,119960.0,0.22864325]
[1755014312634,0.16968834,119970.0,119960.0,0.22864325]
[1755014312890,0.17068834,119970.0,119960.0,0.22864325]
[1755014315685,0.17300834,119970.0,119960.0,0.22864325]
[1755014316313,0.74263513,119970.0,119960.0,0.22784325]
[1755014316558,0.86602858,119970.0,119960.0,4e-05]
[1755014316765,0.86602858,119970.0,119960.0,0.14512]
[1755014317433,0.17650336,119970.0,119960.0,0.79491502]
[1755014317683,0.16870834,119970.0,119960.0,1.35674679]
[1755014317899,0.002,119970.0,119960.0,1.52346903]
[1755014318099,0.16870834,119970.0,119960.0,1.52346903]
[1755014318235,0.16870834,119970.0,119960.0,0.96163726]
[1755014318426,0.16870834,119970.0,119960.0,1.35674679]
[1755014318859,0.16770834,119970.0,119960.0,1.35674679]
[1755014319074,0.16770834,119970.0,119960.0,1.35974679]
[1755014319296,0.16670834,119970.0,119960.0,1.35974679]
[1755014319489,0.17512155,119980.0,119960.0,0.40280549]
[1755014319723,0.17512155,119980.0,119970.0,0.56919947]
[1755014319875,0.17512155,119980.0,119970.0,0.56707177]
[1755014320095,0.17512155,119980.0,119970.0,0.56711177]
[1755014320501,0.73902332,119980.0,119970.0,0.08276325]
[1755014320701,0.73929332,119980.0,119970.0,0.22820325]
[1755014320905,0.75674234,119980.0,119970.0,0.00052832]
[1755014321246,0.75674234,119980.0,119970.0,0.14588832]
[1755014321479,0.17512155,119980.0,119970.0,0.70772009]
[1755014321688,0.17512155,119980.0,119970.0,0.79568334]
[1755014322510,0.17512155,119980.0,119970.0,0.79668334]
[1755014322716,0.17512155,119980.0,119970.0,0.23485157]
[1755014322867,0.17512155,119980.0,119970.0,0.79568334]
[1755014323277,0.17612155,119980.0,119970.0,0.79568334]
[1755014323686,0.17612155,119980.0,119970.0,0.23385157]
[1755014323861,0.17512155,119980.0,119970.0,0.79568334]
[1755014324307,0.17512155,119980.0,119970.0,0.23385157]
[1755014324509,0.17512155,119980.0,119970.0,0.79568334]
[1755014324667,0.17512155,119980.0,119970.0,0.23385157]
[1755014324862,0.17512155,119980.0,119970.0,0.79568334]
[1755014327458,0.17719155,119980.0,119970.0,0.23353157]
[1755014327674,0.17719155,119980.0,119970.0,0.22829157]
[1755014327920,0.17512155,119980.0,119970.0,0.23033157]
[1755014328133,0.17012155,119980.0,119970.0,0.23353157]
[1755014329796,0.17012155,119980.0,119970.0,0.08849157]
[1755014330016,0.17012155,119980.0,119970.0,0.23325157]
[1755014331608,0.17012155,119980.0,119970.0,0.79508334]
[1755014334466,0.17012155,119980.0,119970.0,0.23325157]
[1755014334680,0.17012155,119980.0,119970.0,0.79508334]
[1755014336547,0.17012155,119980.0,119970.0,0.23325157]
[1755014337028,0.17012155,119980.0,119970.0,0.79508334]
[1755014339327,0.16669444,119980.0,119970.0,0.79508334]
[1755014339531,0.16669444,119980.0,119970.0,0.23325157]
[1755014339681,0.16669444,119980.0,119970.0,0.79508334]
[1755014340918,0.18426884,119990.0,119970.0,0.79508334]
[1755014341126,0.16669444,119980.0,119970.0,0.71236009]
[1755014341305,0.16669444,119980.0,119970.0,0.70916009]
[1755014341900,0.16669444,119980.0,119970.0,0.71236009]
[1755014342655,0.16669444,119980.0,119970.0,0.79508334]
[1755014343597,0.16669444,119980.0,119970.0,0.23325157]
[1755014344155,0.16867444,119980.0,119970.0,0.22869157]
[1755014344357,0.16669444,119980.0,119970.0,0.23189157]
[1755014349004,0.16669444,119980.0,119970.0,0.79372334]
[1755014350447,0.16669444,119980.0,119970.0,0.23189157]
[1755014350898,0.16669444,119980.0,119970.0,0.79372334]
[1755014351552,0.16669444,119980.0,119970.0,0.23189157]
[1755014357508,0.16669444,119980.0,119970.0,0.23049157]
[1755014357771,0.73051621,119980.0,119970.0,0.08325157]
[1755014358041,0.77441523,119980.0,119970.0,0.00052832]
[1755014358254,0.77441523,119980.0,119970.0,0.14236832]
[1755014359007,0.77641523,119980.0,119970.0,0.14236832]
[1755014359431,0.77841523,119980.0,119970.0,0.14236832]
[1755014361579,0.19913444,119980.0,119970.0,0.14236832]
[1755014364196,0.17268444,119980.0,119970.0,0.14236832]
[1755014365349,0.17268444,119980.0,119970.0,0.14180832]
[1755014367280,0.73451621,119980.0,119970.0,0.14180832]
[1755014370453,0.17268444,119980.0,119970.0,0.14180832]
[1755014371068,0.17268444,119980.0,119970.0,0.14388832]
[1755014371307,0.17069444,119980.0,119970.0,0.22964157]
[1755014373185,0.17267444,119980.0,119970.0,0.22756157]
[1755014373405,0.17267444,119980.0,119970.0,0.08325157]
[1755014373589,0.17267444,119980.0,119970.0,0.00052832]
[1755014373866,0.17267444,119980.0,119970.0,0.14176832]
[1755014374089,0.17069444,119980.0,119970.0,0.22960157]
[1755014374316,0.17069444,119980.0,119970.0,0.79143334]
[1755014375698,0.16869444,119980.0,119970.0,0.79143334]
[1755014375901,0.16669444,119980.0,119970.0,0.79143334]
[1755014376153,0.16769444,119980.0,119970.0,0.22960157]
[1755014376349,0.16869444,119980.0,119970.0,0.79143334]
[1755014378177,0.16869444,119980.0,119970.0,0.22960157]
[1755014378728,0.17065444,119980.0,119970.0,0.22445157]
[1755014380178,0.73480621,119980.0,119970.0,0.14172832]
[1755014380574,0.17297444,119980.0,119970.0,0.14172832]
[1755014380771,0.17065444,119980.0,119970.0,0.14172832]
[1755014384507,0.17065444,119980.0,119970.0,0.14168832]
[1755014385865,0.17065444,119980.0,119970.0,0.14685832]
[1755014386483,0.16869444,119980.0,119970.0,0.21446872]
[1755014386698,0.16869444,119980.0,119970.0,0.85902374]
[1755014387374,0.16869444,119980.0,119970.0,0.22958157]
[1755014387606,0.17065444,119980.0,119970.0,0.22958157]
[1755014387850,0.17065444,119980.0,119970.0,0.08325157]
[1755014388072,0.73248621,119980.0,119970.0,0.08325157]
[1755014388290,0.73248621,119980.0,119970.0,0.14168832]
[1755014388500,0.73480621,119980.0,119970.0,0.14168832]
[1755014388712,0.73480621,119980.0,119970.0,0.00052832]
[1755014389151,0.73480621,119980.0,119970.0,0.14168832]
[1755014389373,0.17297444,119980.0,119970.0,0.14168832]
[1755014390023,0.73480621,119980.0,119970.0,0.00052832]
[1755014390166,0.83473966,119980.0,119970.0,0.00052832]
[1755014390393,0.83473966,119980.0,119970.0,0.14168832]
[1755014390809,0.21545146,119980.0,119970.0,0.14168832]
[1755014391015,0.77728323,119980.0,119970.0,0.14168832]
[1755014391481,0.77728323,119980.0,119970.0,0.00052832]
[1755014392085,0.21313146,119980.0,119970.0,0.00052832]
[1755014392289,0.77496323,119980.0,119970.0,0.00052832]
[1755014392496,0.85744766,119980.0,119970.0,0.00052832]
[1755014392907,0.29561589,119980.0,119970.0,0.00052832]
[1755014393101,0.21313146,119980.0,119970.0,0.00052832]
[1755014394700,0.21313146,119980.0,119970.0,0.14164832]
[1755014394913,0.19568244,119980.0,119970.0,0.14164832]
[1755014395121,0.19568244,119980.0,119970.0,0.14681832]
[1755014395989,0.19568244,119980.0,119970.0,0.14164832]
[1755014396194,0.19568244,119980.0,119970.0,0.14681832]
[1755014397377,0.18820244,119980.0,119970.0,0.14681832]
[1755014397588,0.18624244,119980.0,119970.0,0.14681832]
[1755014397896,0.18624244,119980.0,119970.0,0.79137334]
[1755014398296,0.16121444,119980.0,119970.0,0.79137334]
[1755014398501,0.16121444,119980.0,119970.0,0.22954157]
[1755014398763,0.16121444,119980.0,119970.0,0.79137334]
[1755014399539,0.16021444,119980.0,119970.0,0.79137334]
[1755014399938,0.15921444,119980.0,119970.0,0.79137334]
[1755014400813,0.15921444,119980.0,119970.0,0.22950157]
[1755014401399,0.15921444,119980.0,119970.0,0.79133334]
[1755014401632,0.15921444,119980.0,119970.0,0.65021334]
[1755014402063,0.15921444,119980.0,119970.0,0.08838157]
[1755014402327,0.15921444,119980.0,119970.0,0.09046542]
[1755014403073,0.15921444,119980.0,119970.0,0.23154542]
[1755014403243,0.15921444,119980.0,119970.0,0.22946157]
[1755014403665,0.15921444,119980.0,119970.0,0.79129334]
[1755014404199,0.15921444,119980.0,119970.0,0.22946157]
[1755014404784,0.15921444,119980.0,119970.0,0.79129334]
[1755014405390,0.16669444,119980.0,119970.0,0.79129334]
[1755014406371,0.16669444,119980.0,119970.0,0.08838157]
[1755014406608,0.73281621,119980.0,119970.0,0.00048832]
[1755014406812,0.73281621,119980.0,119970.0,0.00148832]
[1755014407016,0.87385621,119980.0,119970.0,0.00248832]
[1755014407525,0.16675004,119940.0,119930.0,0.20304]
[1755014407664,0.16675004,119940.0,119930.0,0.42928866]
[1755014408061,0.73056181,119940.0,119930.0,0.42928866]
[1755014408260,0.16873004,119940.0,119930.0,0.42419866]
[1755014408460,0.16873004,119940.0,119930.0,0.42415866]
[1755014408925,0.16873004,119940.0,119930.0,0.08311866]
[1755014409122,0.16873004,119940.0,119930.0,0.22415866]
[1755014409506,0.73056181,119940.0,119930.0,0.22415866]
[1755014409761,0.73056181,119940.0,119930.0,0.14143541]
[1755014410175,0.16873004,119940.0,119930.0,0.14143541]
[1755014411084,0.19379257,119940.0,119930.0,0.14143541]
[1755014412284,0.19379257,119940.0,119930.0,0.14352541]
[1755014412486,0.19181257,119940.0,119930.0,0.14652541]
[1755014414472,0.19181257,119940.0,119930.0,0.22924866]
[1755014415998,0.19181257,119940.0,119930.0,0.79108043]
[1755014416234,0.19181257,119940.0,119930.0,0.22924866]
[1755014417112,0.16681257,119940.0,119930.0,0.22924866]
[1755014418085,0.19184457,119940.0,119930.0,0.22924866]
[1755014418961,0.16678204,119940.0,119930.0,0.79108043]
[1755014419214,0.14175004,119940.0,119930.0,0.22924866]
[1755014419836,0.14175004,119940.0,119930.0,0.79108043]
[1755014421128,0.14175004,119940.0,119930.0,0.22924866]
[1755014421343,0.14175004,119940.0,119930.0,0.79108043]
[1755014422610,0.60449847,119950.0,119930.0,0.22916866]
[1755014422837,0.16675004,119940.0,119930.0,0.14644541]
[1755014423267,0.16675004,119940.0,119930.0,0.70827718]
[1755014424183,0.16675004,119940.0,119930.0,0.79100043]
[1755014425122,0.16873004,119940.0,119930.0,0.22912866]
[1755014425789,0.16675004,119940.0,119930.0,0.22912866]
[1755014426244,0.16675004,119940.0,119930.0,0.08820866]
[1755014426449,0.16675004,119940.0,119930.0,0.22912866]
[1755014427332,0.16873004,119940.0,119930.0,0.22912866]
[1755014427766,0.16873004,119940.0,119930.0,0.08820866]